bitfinex-derivatives/quotes_ETHF0:USTF0_20250902
["timestamp","ask_amount","ask_price","bid_price","bid_amount"]
[1756824858914,0.5281,4351.4,4350.6,40.8]
[1756824859122,0.223,4351.8,4350.6,41.44351999]
[1756824859325,0.5281,4351.7,4350.6,41.21369]
[1756824859520,0.223,4351.8,4350.7,0.244]
[1756824859824,0.5281,4351.7,4350.7,0.244]
[1756824860222,3.2078,4351.5,4350.6,40.8]
[1756824860419,0.5281,4351.4,4350.5,0.244]
[1756824860725,0.5281,4350.9,4350.4,3.2078]
[1756824860917,0.221,4351.0,4350.5,40.8]
[1756824861118,0.7491,4350.5,4350.4,3.4518]
[1756824861317,0.7491,4350.5,4350.4,3.2078]
[1756824861621,0.7491,4351.5,4350.4,7.2078]
[1756824861822,0.7491,4351.5,4350.5,0.244]
[1756824862019,0.5281,4351.3,4350.5,0.244]
[1756824862219,0.5281,4351.3,4350.4,3.4518]
[1756824862427,3.2078,4351.4,4350.4,3.4518]
[1756824862614,0.5281,4351.3,4350.4,3.4518]
[1756824862926,0.5281,4351.3,4350.5,0.4137]
[1756824863128,0.5281,4351.3,4350.6,0.41369]
[1756824863326,0.221,4351.5,4350.9,3.2078]
[1756824863626,0.5281,4351.8,4351.0,0.65765]
[1756824863926,0.5281,4351.8,4351.1,0.244]
[1756824864221,0.5281,4351.8,4350.9,3.2078]
[1756824864421,3.2078,4351.6,4350.5,40.8]
[1756824864721,0.5281,4351.4,4350.5,40.8]
[1756824864926,0.5281,4351.4,4350.6,0.244]
[1756824865324,0.221,4351.5,4350.5,0.244]
[1756824865520,0.7491,4350.5,4350.4,3.2078]
[1756824865722,0.7491,4350.0,4349.9,3.2078]
[1756824865918,0.5281,4349.4,4348.8,0.244]
[1756824866122,0.221,4349.5,4348.9,0.244]
[1756824866423,0.5281,4349.4,4349.0,40.8]
[1756824866816,0.221,4349.5,4349.0,40.8]
[1756824867223,0.5281,4349.7,4348.9,0.244]
[1756824867624,0.5281,4349.8,4348.7,41.044]
[1756824867824,0.5281,4349.9,4348.7,41.044]
[1756824868026,0.5281,4349.9,4348.7,41.45787]
[1756824868528,0.5281,4349.9,4349.1,3.2078]
[1756824868729,0.5281,4349.9,4349.2,0.244]
[1756824869120,0.5281,4349.9,4349.1,3.2078]
[1756824869320,0.5281,4349.9,4349.2,0.244]
[1756824869524,3.4288,4350.5,4349.2,0.244]
[1756824869725,0.5281,4350.4,4349.2,0.244]
[1756824870130,0.5281,4350.4,4349.6,3.2078]
[1756824870329,0.5281,4350.8,4349.7,0.244]
[1756824871032,0.5281,4350.8,4349.7,0.88764]
[1756824871332,0.5281,4350.8,4350.1,3.2078]
[1756824871834,0.5281,4350.8,4350.2,0.244]
[1756824872232,0.5281,4350.8,4350.1,3.2078]
[1756824872430,3.2078,4351.2,4350.1,3.2078]
[1756824872632,0.221,4350.5,4350.1,3.2078]
[1756824872837,3.2078,4350.2,4349.3,3.2078]
[1756824873139,0.5281,4349.4,4349.3,3.2078]
[1756824873332,3.4288,4350.0,4349.3,3.2078]
[1756824873531,0.5281,4349.9,4349.3,3.4518]
[1756824873926,30.566,4351.5,4349.3,3.43771]
[1756824873927,0.5281,4350.4,4349.3,3.43771]
[1756824874133,3.2078,4350.7,4349.3,3.2078]
[1756824874436,0.5281,4350.4,4349.3,3.4518]
[1756824874636,3.2078,4350.7,4349.3,3.4518]
[1756824874836,0.221,4351.0,4350.4,3.2078]
[1756824875027,0.221,4351.0,4350.5,0.4137]
[1756824875232,3.2078,4351.4,4350.6,0.41369]
[1756824875635,3.2078,4351.4,4350.7,40.8]
[1756824875940,0.5281,4351.6,4351.1,3.62144]
[1756824876140,0.221,4352.0,4351.2,0.244]
[1756824876342,0.221,4352.0,4351.1,3.2078]
[1756824876640,0.5281,4351.4,4351.1,3.4518]
[1756824876943,0.221,4351.5,4351.1,3.4518]
[1756824877142,0.5281,4351.4,4351.1,3.2078]
[1756824877340,0.5281,4351.9,4351.1,3.2078]
[1756824877535,0.5281,4351.9,4351.2,0.244]
[1756824879040,0.4947,4351.9,4351.1,3.2078]
[1756824879244,0.2022,4351.5,4351.2,0.244]
[1756824879439,0.4947,4351.9,4351.2,0.244]
[1756824880549,0.4947,4351.9,4351.1,3.2078]
[1756824880742,0.2022,4351.5,4351.2,0.244]
[1756824880941,0.4947,4351.4,4351.2,0.244]
[1756824881141,0.2022,4351.5,4351.2,0.244]
[1756824881639,0.4947,4351.4,4351.1,3.2078]
[1756824882041,0.2022,4351.5,4351.1,3.2078]
[1756824882238,0.4947,4351.4,4351.1,3.2078]
[1756824882739,0.2022,4351.5,4351.1,3.2078]
[1756824883242,0.4947,4351.4,4351.1,3.2078]
[1756824883742,0.2022,4350.5,4350.1,3.4518]
[1756824883948,0.2022,4350.5,4350.1,3.2078]
[1756824884645,0.4947,4350.4,4350.1,3.2078]
[1756824884846,0.2022,4350.5,4350.1,3.2078]
[1756824885248,0.4947,4350.4,4350.1,3.2078]
[1756824885648,0.4947,4349.9,4349.6,0.244]
[1756824886050,0.4947,4350.4,4349.6,0.244]
[1756824886244,0.4947,4350.4,4349.5,3.2078]
[1756824886547,0.4947,4350.4,4349.6,0.244]
[1756824887544,0.4947,4350.4,4349.7,0.244]
[1756824887850,0.4947,4349.9,4349.7,0.244]
[1756824888050,0.2022,4350.0,4349.7,0.244]
[1756824888255,0.4947,4349.9,4349.7,0.244]
[1756824889044,0.2022,4350.0,4349.7,0.244]
[1756824889243,0.4947,4349.9,4349.7,0.244]
[1756824889449,0.4947,4350.4,4349.7,0.244]
[1756824891353,0.4947,4350.4,4349.5,3.2078]
[1756824891551,0.4947,4350.4,4349.6,0.244]
[1756824891746,3.41,4350.5,4349.7,0.244]
[1756824892051,0.2022,4350.0,4349.7,0.244]
[1756824892449,0.2022,4349.5,4349.0,3.2078]
[1756824892652,0.4947,4349.4,4349.1,0.244]
[1756824893650,0.4947,4349.9,4349.1,0.244]
[1756824894850,0.4947,4349.9,4349.2,0.244]
[1756824895055,0.2022,4349.5,4349.2,0.244]
[1756824895554,0.4947,4349.4,4349.0,44.0078]
[1756824895755,0.2022,4349.5,4349.1,0.244]
[1756824896056,0.4947,4349.9,4349.1,0.244]
[1756824896253,0.4947,4349.9,4349.2,0.22991]
[1756824896655,0.4947,4349.9,4349.0,44.42164]
[1756824896856,0.2022,4349.5,4349.1,0.244]
[1756824897053,0.2022,4349.5,4349.0,44.0078]
[1756824897251,0.2022,4349.5,4349.2,0.244]
[1756824897858,0.4947,4349.4,4349.2,0.244]
[1756824898060,0.2022,4349.5,4349.2,0.244]
[1756824898357,0.4947,4349.4,4349.0,44.0078]
[1756824898558,0.2022,4349.5,4349.1,0.244]
[1756824898760,0.4947,4349.4,4349.1,0.244]
[1756824898960,0.2022,4349.5,4349.1,0.244]
[1756824899454,0.4947,4350.0,4349.4,0.4138]
[1756824899657,3.9047,4350.5,4349.8,3.2078]
[1756824899862,3.9047,4350.5,4349.9,0.244]
[1756824900061,0.2022,4350.0,4349.6,0.244]
[1756824900269,0.2022,4349.5,4349.2,3.2078]
[1756824900463,0.4947,4349.4,4349.2,3.2078]
[1756824901758,0.2022,4349.5,4349.2,3.2078]
[1756824902553,0.4947,4349.4,4349.2,3.2078]
[1756824902752,0.2022,4349.5,4349.2,3.2078]
[1756824903259,0.2022,4349.5,4348.6,3.4518]
[1756824903260,0.2022,4349.0,4348.6,3.4518]
[1756824903462,0.2022,4349.0,4348.6,3.2078]
[1756824903662,0.4947,4348.9,4348.6,3.2078]
[1756824904062,0.2022,4349.5,4348.7,0.244]
[1756824904261,0.4947,4349.4,4348.7,0.244]
[1756824905062,0.2022,4349.5,4348.6,3.2078]
[1756824905258,0.4947,4349.4,4348.7,0.244]
[1756824905961,0.2022,4349.5,4348.8,0.244]
[1756824906158,0.4947,4348.9,4348.6,3.2078]
[1756824906363,0.2022,4349.0,4348.6,3.4518]
[1756824906663,4.2022,4349.0,4348.6,3.2078]
[1756824906862,0.4947,4348.9,4348.6,3.2078]
[1756824907066,4.2022,4349.0,4348.6,3.2078]
[1756824907462,0.2022,4349.0,4348.6,3.2078]
[1756824907966,0.4947,4348.9,4348.6,3.2078]
[1756824908161,0.2022,4349.0,4348.6,3.2078]
[1756824908568,0.4947,4348.9,4348.6,3.2078]
[1756824908968,0.2022,4349.0,4348.6,3.2078]
[1756824909362,0.5289,4348.9,4348.6,3.2078]
[1756824909563,0.2022,4349.0,4348.6,3.2078]
[1756824909765,0.5289,4348.9,4348.6,3.2078]
[1756824910072,0.2022,4349.0,4348.6,3.2078]
[1756824910667,0.5289,4348.9,4348.6,3.2078]
[1756824910868,0.2022,4349.0,4348.6,3.2078]
[1756824911371,0.5289,4348.9,4348.6,3.2078]
[1756824911570,0.2022,4349.0,4348.6,3.2078]
[1756824911771,0.5289,4348.9,4348.6,3.2078]
[1756824911968,0.2022,4349.0,4348.6,3.2078]
[1756824912170,0.5289,4348.9,4348.6,3.2078]
[1756824912771,0.2022,4349.0,4348.6,3.2078]
[1756824912972,0.5289,4348.9,4348.6,3.2078]
[1756824913272,0.2022,4349.0,4348.6,3.2078]
[1756824913973,0.5289,4348.9,4348.7,0.244]
[1756824914271,0.5289,4349.5,4348.7,0.244]
[1756824914574,0.5289,4349.4,4348.8,0.244]
[1756824914772,0.193,4349.0,4348.6,3.2078]
[1756824915168,0.5289,4348.9,4348.6,3.2078]
[1756824915371,0.5289,4349.4,4348.7,0.244]
[1756824915870,0.5289,4348.9,4348.6,3.2078]
[1756824916180,0.5289,4348.9,4348.7,40.8]
[1756824916576,0.193,4349.0,4348.6,3.2078]
[1756824918077,0.5289,4348.9,4348.6,3.2078]
[1756824918581,0.5289,4349.4,4348.6,3.4518]
[1756824919380,0.193,4349.5,4348.6,3.2078]
[1756824919575,0.5289,4348.9,4348.6,3.2078]
[1756824919778,0.193,4349.0,4348.6,3.2078]
[1756824920774,0.5289,4348.8,4347.8,3.2078]
[1756824920981,0.5289,4347.9,4347.8,3.2078]
[1756824921676,0.193,4348.0,4347.3,3.2078]
[1756824921881,0.5289,4347.4,4347.3,3.2078]
[1756824926284,0.193,4346.5,4346.3,3.2078]
[1756824926487,0.5289,4346.4,4346.3,3.2078]
[1756824926685,0.193,4346.0,4345.5,3.2078]
[1756824926890,0.5289,4345.9,4345.5,3.2078]
[1756824927092,0.193,4346.0,4345.5,3.2078]
[1756824927394,0.5289,4345.9,4345.5,3.2078]
[1756824927788,0.193,4346.0,4345.5,3.2078]
[1756824928190,0.193,4346.0,4344.8,3.2078]
[1756824928389,0.5289,4345.4,4344.6,41.044]
[1756824928586,0.5289,4344.9,4344.6,40.8]
[1756824928891,0.5289,4344.9,4344.5,0.244]
[1756824929285,0.193,4345.0,4344.5,0.244]
[1756824929493,0.5289,4344.9,4344.5,0.244]
[1756824929694,0.193,4345.0,4344.5,0.244]
[1756824929988,0.5289,4344.9,4344.5,0.244]
[1756824930188,0.193,4345.0,4344.0,40.8]
[1756824930391,0.5289,4344.9,4344.1,0.244]
[1756824930590,0.193,4345.0,4343.7,3.2078]
[1756824930591,0.5289,4344.4,4343.7,3.2078]
[1756824930791,3.2078,4343.8,4343.2,0.244]
[1756824930991,0.7219,4343.0,4342.9,3.2078]
[1756824931190,0.193,4343.5,4342.9,3.2078]
[1756824931394,0.5289,4343.6,4342.9,3.4518]
[1756824931594,0.193,4344.0,4342.9,3.2078]
[1756824931595,3.2078,4343.9,4342.9,3.2078]
[1756824931789,0.5289,4343.8,4342.9,3.2078]
[1756824932290,3.2078,4343.9,4342.9,3.2078]
[1756824932687,0.5289,4342.9,4342.8,0.17500029]
[1756824932995,0.5289,4343.4,4342.8,0.17500029]
[1756824933191,0.5289,4343.7,4342.9,3.2078]
[1756824933396,0.5289,4343.7,4342.8,0.41900029]
[1756824934495,0.5289,4342.9,4342.8,0.17500029]
[1756824935293,0.5289,4342.9,4341.7,3.2078]
[1756824935294,0.5289,4342.4,4341.7,3.2078]
[1756824935496,0.5289,4342.3,4341.7,3.2078]
[1756824935696,0.244,4342.4,4341.7,3.2078]
[1756824935997,0.5289,4342.3,4341.7,3.2078]
[1756824936195,0.244,4342.4,4341.7,3.2078]
[1756824936493,0.193,4342.0,4341.7,3.2078]
[1756824937096,0.5289,4341.9,4341.7,3.2078]
[1756824937295,0.193,4342.0,4341.7,3.2078]
[1756824937492,0.5289,4341.9,4341.7,3.2078]
[1756824937695,0.193,4342.0,4341.7,3.2078]
[1756824938087,0.5289,4341.9,4341.7,3.2078]
[1756824938399,0.193,4342.0,4341.7,3.2078]
[1756824938597,0.5289,4341.9,4341.7,3.2078]
[1756824938793,0.193,4342.0,4341.7,3.2078]
[1756824939195,0.4977,4341.9,4341.7,3.2078]
[1756824939697,0.4977,4341.7,4340.7,3.2822]
[1756824939892,0.244,4341.6,4340.7,3.2078]
[1756824940095,0.4977,4340.7,4338.8,0.0744]
[1756824940294,0.2151,4341.0,4338.7,3.2078]
[1756824940295,3.4229,4340.0,4338.7,3.2078]
[1756824940493,3.2078,4338.8,4337.8,0.244]
[1756824940698,3.2078,4338.8,4337.9,0.0744]
[1756824940899,3.2078,4338.5,4337.9,0.0744]
[1756824941396,0.2151,4339.5,4338.2,3.2078]
[1756824941397,0.4977,4339.2,4338.2,3.2078]
[1756824941598,3.2078,4339.0,4338.2,3.2078]
[1756824941798,3.2078,4339.0,4338.2,3.4518]
[1756824941994,3.4229,4339.0,4338.2,3.4518]
[1756824942195,0.4977,4338.9,4338.0,0.0744]
[1756824942400,0.4977,4338.4,4337.5,3.2078]
[1756824942803,3.2078,4338.5,4337.7,0.0744]
[1756824943005,3.9206,4339.0,4338.0,3.2078]
[1756824943199,4.1656,4339.0,4338.0,3.2078]
[1756824943393,3.6679,4339.0,4337.3,3.2822]
[1756824943599,0.4977,4338.2,4337.3,3.5272]
[1756824943905,0.4977,4338.2,4337.4,40.8]
[1756824944299,0.4977,4338.7,4337.5,0.0744]
[1756824944499,0.4977,4338.7,4337.4,3.2078]
[1756824944799,3.2078,4338.3,4337.4,0.0744]
[1756824945106,0.4977,4338.5,4337.6,0.0744]
[1756824945307,3.2078,4338.8,4337.8,0.0744]
[1756824945495,3.2078,4338.8,4338.0,3.2078]
[1756824945695,0.4977,4338.7,4337.8,0.0744]
[1756824945902,3.2078,4338.8,4337.5,3.2078]
[1756824946208,0.64724713,4338.7,4337.5,3.4538]
[1756824946398,0.2151,4338.5,4337.5,3.4538]
[1756824946599,0.2151,4338.5,4337.5,3.5282]
[1756824946804,0.2151,4338.5,4337.6,0.23052]
[1756824947009,0.4977,4338.6,4338.0,3.2078]
[1756824947608,3.2078,4338.8,4338.1,3.2822]
[1756824948003,3.7055,4338.8,4338.1,3.2822]
[1756824948307,3.2078,4338.8,4337.6,3.2078]
[1756824948510,0.6471769,4338.7,4337.6,3.2078]
[1756824948702,0.7128,4338.5,4337.6,3.2078]
[1756824948903,0.6471769,4338.4,4337.6,3.2078]
[1756824949099,0.4611,4338.5,4337.6,3.2078]
[1756824949298,0.4977,4338.3,4337.6,3.2078]
[1756824949504,0.4611,4338.5,4337.6,3.2078]
[1756824949705,0.4977,4337.9,4337.3,0.246]
[1756824949903,0.4977,4337.9,4337.3,0.30492999]
[1756824950106,0.4977,4338.4,4337.4,0.0744]
[1756824950307,0.4977,4338.4,4337.5,0.0744]
[1756824950510,0.4977,4338.4,4337.6,0.246]
[1756824950708,0.4977,4338.4,4337.8,3.2078]
[1756824951310,0.4977,4338.4,4337.8,3.4538]
[1756824951706,0.4977,4339.3,4338.4,0.0744]
[1756824951899,3.2078,4339.7,4338.6,0.0744]
[1756824952105,3.2078,4339.7,4338.5,40.8]
[1756824952106,0.7128,4339.0,4338.5,40.8]
[1756824952306,0.4977,4338.8,4338.5,40.8]
[1756824952603,0.4977,4338.9,4338.5,40.8]
[1756824953105,0.7128,4339.0,4338.1,3.5282]
[1756824953409,0.7128,4339.5,4338.3,0.0744]
[1756824953605,3.2078,4339.0,4338.4,40.8]
[1756824953805,0.4977,4338.9,4338.4,40.8]
[1756824954203,0.64969789,4338.8,4338.4,40.8]
[1756824954404,0.4977,4339.0,4338.4,40.8]
[1756824954602,4.1666,4339.5,4338.5,0.0744]
[1756824954802,0.64972517,4339.4,4338.6,0.246]
[1756824955016,0.64972517,4339.3,4338.6,0.246]
[1756824955213,0.64972517,4339.2,4338.6,0.246]
[1756824955409,3.9206,4339.5,4338.7,0.0744]
[1756824955410,0.64972517,4339.1,4338.7,0.0744]
[1756824955709,0.64972517,4339.0,4338.6,3.43827]
[1756824955908,0.65056132,4338.9,4338.7,0.3204]
[1756824956107,0.4977,4339.3,4338.7,0.3204]
[1756824956408,0.4977,4339.1,4338.8,0.246]
[1756824956614,0.4977,4338.9,4338.4,40.8]
[1756824956914,0.65170336,4338.8,4338.5,3.4538]
[1756824957104,0.4977,4338.6,4338.4,40.8]
[1756824957306,0.86742569,4338.5,4338.0,3.2078]
[1756824957510,0.65232569,4338.4,4338.1,0.246]
[1756824957710,0.57792569,4338.3,4338.2,0.0744]
[1756824957916,1.2037318,4339.4,4338.4,0.41486]
[1756824958106,0.4977,4339.4,4339.0,3.2078]
[1756824958411,0.4977,4339.4,4339.1,0.246]
[1756824958613,0.4977,4339.4,4339.0,3.2078]
[1756824958811,1.2037318,4339.3,4338.9,0.246]
[1756824959115,1.2037318,4339.2,4338.9,0.246]
[1756824959315,1.2037318,4339.3,4338.9,0.246]
[1756824959512,1.2037318,4339.4,4338.9,0.246]
[1756824959716,1.2037318,4339.6,4338.9,0.246]
[1756824959911,1.2037318,4339.8,4339.4,3.2078]
[1756824960119,1.2037318,4339.8,4339.5,0.246]
[1756824960311,1.2037318,4340.0,4339.8,0.41472]
[1756824960511,0.4147,4340.1,4339.9,3.2078]
[1756824960706,0.4977,4339.5,4339.4,3.2078]
[1756824960914,1.6184618,4339.9,4339.4,3.4538]
[1756824961116,0.41473,4339.8,4339.5,40.8]
[1756824961316,1.2037318,4340.0,4339.6,0.246]
[1756824961519,1.2037318,4340.6,4339.9,3.2078]
[1756824961813,0.41471,4340.0,4339.9,3.2078]
[1756824962012,0.91241,4340.0,4339.9,3.4538]
[1756824962214,0.91241,4340.0,4339.9,44.2538]
[1756824962415,2.3312418,4340.0,4339.9,44.0078]
[1756824962717,2.3312418,4340.0,4339.9,44.2538]
[1756824963017,2.3312418,4340.0,4339.9,3.4538]
[1756824963210,1.12751,4340.0,4339.9,3.4538]
[1756824963408,0.7128,4340.0,4339.9,3.4538]
[1756824963615,1.21606305,4340.1,4339.9,3.4538]
[1756824964027,1.21606305,4340.5,4340.3,0.41467]
[1756824964216,1.21606305,4340.8,4340.4,7.86847]
[1756824964516,0.2151,4341.5,4340.4,3.4538]
[1756824964517,1.21606305,4340.9,4340.4,3.4538]
[1756824964712,0.41457,4341.5,4340.5,40.8]
[1756824964920,2.34343305,4341.5,4341.4,3.2078]
[1756824965214,1.12737,4341.5,4341.4,3.2078]
[1756824965519,2.34485213,4341.5,4341.4,3.4538]
[1756824965724,2.34485213,4341.5,4341.4,3.2078]
[1756824965920,0.7128,4341.5,4341.4,0.246]
[1756824966110,0.41462,4341.0,4340.9,3.2078]
[1756824966309,2.12994249,4341.4,4340.9,0.246]
[1756824966608,1.21766249,4341.5,4341.1,0.4146]
[1756824966819,0.41457,4341.5,4341.4,3.2078]
[1756824967012,0.91227,4341.5,4341.4,3.2078]
[1756824967212,0.91227,4341.5,4341.4,3.4538]
[1756824967416,1.21766249,4341.7,4341.4,3.4538]
[1756824967618,1.21766249,4342.1,4341.4,7.4538]
[1756824967923,2.12987249,4342.1,4342.0,3.2078]
[1756824968122,0.91221,4342.1,4342.0,3.4538]
[1756824968322,1.12737,4341.5,4341.4,3.2078]
[1756824968519,1.12737,4341.5,4341.4,3.4538]
[1756824968721,0.91227,4341.5,4341.4,3.4538]
[1756824968915,1.21766258,4341.7,4341.4,3.4538]
[1756824969119,1.21766258,4342.1,4341.4,3.4538]
[1756824969317,0.41453,4341.9,4341.4,3.62237]
[1756824969615,0.5101,4341.6,4341.5,40.8]
[1756824969820,1.13630729,4341.6,4341.5,41.046]
[1756824970619,1.13630729,4341.6,4341.5,40.8]
[1756824970821,1.13630729,4341.6,4341.5,41.046]
[1756824971016,1.13630729,4341.6,4341.5,0.246]
[1756824971218,1.13630729,4341.6,4341.4,3.2078]
[1756824971531,0.62620729,4341.5,4341.4,44.0078]
[1756824971718,0.62620729,4341.5,4341.4,44.2538]
[1756824972029,0.10516141,4341.5,4341.4,48.48414]
[1756824972216,1.43276258,4342.5,4341.4,48.0078]
[1756824972411,0.5101,4342.4,4341.5,0.246]
[1756824972818,0.2151,4342.5,4341.9,3.2078]
[1756824973023,0.2151,4342.5,4342.0,0.246]
[1756824973225,0.2151,4342.5,4342.1,0.246]
[1756824973717,1.72776258,4343.0,4342.4,3.2078]
[1756824973927,0.5101,4343.0,4342.9,3.2078]
[1756824974117,0.5101,4343.0,4342.9,3.4538]
[1756824974318,0.2151,4343.5,4342.9,3.4538]
[1756824974518,0.7252,4343.5,4342.9,3.4538]
[1756824974925,0.5101,4343.4,4343.0,0.246]
[1756824975117,0.2151,4343.5,4342.9,3.2078]
[1756824975118,0.7052,4343.0,4342.9,3.2078]
[1756824975319,0.7052,4343.0,4342.9,0.246]
[1756824975714,0.7252,4343.5,4343.0,0.41442]
[1756824975915,0.2151,4343.5,4343.1,0.246]
[1756824976321,0.5101,4343.4,4343.1,0.246]
[1756824976518,0.2151,4343.5,4343.1,0.246]
[1756824976924,0.5101,4343.4,4343.1,0.246]
[1756824977421,0.2151,4343.5,4343.1,0.246]
[1756824977824,0.5101,4343.4,4343.1,0.246]
[1756824978123,0.5101,4343.9,4342.9,44.0078]
[1756824978428,0.7052,4343.0,4342.9,44.0078]
[1756824978626,0.5101,4342.4,4342.2,30.409]
[1756824978923,0.5101,4342.4,4342.3,0.246]
[1756824979128,0.5101,4342.4,4342.3,40.8]
[1756824979427,0.5101,4342.4,4342.3,0.246]
[1756824979624,0.5101,4342.4,4342.2,30.409]
[1756824979828,0.5101,4342.4,4342.3,0.246]
[1756824980325,0.5101,4342.9,4342.3,0.246]
[1756824980823,0.5101,4343.3,4342.4,0.41448]
[1756824981023,0.1951,4343.5,4342.5,0.246]
[1756824981224,0.1951,4343.5,4342.3,3.2078]
[1756824981425,0.1951,4342.5,4342.4,0.246]
[1756824981619,0.1951,4342.5,4342.3,3.2078]
[1756824981820,0.1951,4342.5,4342.4,0.246]
[1756824982126,0.1951,4342.5,4342.2,71.209]
[1756824982425,0.7052,4342.5,4342.4,0.246]
[1756824982633,0.1951,4342.5,4342.4,0.246]
[1756824983231,0.7052,4342.5,4342.4,0.246]
[1756824983628,0.1951,4342.5,4342.4,0.246]
[1756824983932,0.7052,4342.5,4342.4,0.246]
[1756824984134,0.5101,4343.3,4342.4,4.246]
[1756824984332,0.5101,4343.4,4342.8,3.2078]
[1756824984530,0.1951,4343.5,4342.9,0.65943]
[1756824984930,0.7052,4343.5,4342.9,0.65943]
[1756824985330,0.7052,4343.5,4342.9,0.245]
[1756824985531,3.2078,4343.8,4343.3,0.41439]
[1756824985726,3.2078,4343.8,4343.4,0.245]
[1756824986032,0.5101,4344.2,4343.5,41.045]
[1756824986331,0.1951,4344.5,4343.5,40.8]
[1756824986537,0.5101,4343.9,4343.6,0.245]
[1756824986739,0.1951,4344.5,4343.6,0.245]
[1756824986930,0.5101,4343.8,4343.5,40.8]
[1756824987125,0.5101,4343.8,4343.5,0.245]
[1756824987330,0.5101,4343.9,4343.5,0.245]
[1756824987536,3.2078,4344.4,4343.6,40.8]
[1756824987836,3.2078,4344.4,4343.7,0.245]
[1756824988031,3.2078,4344.4,4343.8,0.245]
[1756824988238,0.1951,4344.0,4343.9,0.245]
[1756824988437,0.7052,4344.0,4343.9,0.245]
[1756824988736,0.7052,4344.0,4343.9,0.246]
[1756824989038,0.7052,4344.0,4343.6,40.8]
[1756824989039,0.1951,4344.0,4343.6,40.8]
[1756824989337,0.5101,4343.9,4343.7,0.245]
[1756824989535,0.5101,4343.9,4343.6,40.8]
[1756824989536,0.5101,4343.7,4343.6,40.8]
[1756824989734,0.1951,4343.0,4342.8,3.2078]
[1756824989934,0.7052,4343.0,4342.9,0.246]
[1756824990135,0.1951,4343.0,4342.8,3.2078]
[1756824990330,0.1951,4342.5,4342.2,30.409]
[1756824991137,0.5101,4342.4,4342.3,0.246]
[1756824991530,0.1951,4342.5,4341.8,40.8]
[1756824991737,3.7179,4342.9,4342.2,3.2078]
[1756824991939,0.5101,4342.9,4342.3,0.245]
[1756824992838,0.7052,4342.5,4342.4,0.245]
[1756824994041,0.7052,4342.5,4341.8,40.8]
[1756824994240,0.5101,4342.4,4341.9,0.245]
[1756824994439,0.5101,4342.4,4342.0,0.245]
[1756824994833,0.1951,4342.5,4342.0,0.245]
[1756824995033,0.5101,4342.4,4341.8,40.8]
[1756824995240,0.5101,4342.4,4341.9,0.245]
[1756824995435,0.5101,4341.9,4341.8,40.8]
[1756824995639,0.5101,4341.9,4341.8,41.045]
[1756824996442,0.5101,4342.4,4341.8,41.45954]
[1756824996634,0.1951,4342.5,4341.9,0.41453]
[1756824996940,0.1951,4342.5,4342.2,3.2078]
[1756824997135,3.2078,4343.4,4342.3,0.245]
[1756824997337,3.2078,4343.4,4342.7,3.2078]
[1756824997642,0.5101,4343.2,4342.8,0.65944]
[1756824997844,3.2078,4343.4,4342.9,40.8]
[1756824998042,0.5101,4343.2,4342.9,40.8]
[1756824998239,0.7052,4343.0,4342.5,0.245]
[1756824998438,0.5101,4342.9,4342.2,3.6223]
[1756824998639,0.5101,4342.9,4342.3,0.246]
[1756824998840,0.5101,4342.9,4342.4,40.8]
[1756824999045,0.4778,4342.9,4342.5,0.245]
[1756824999250,0.4778,4343.3,4342.5,0.245]
[1756824999438,0.6823,4342.5,4342.4,40.8]
[1756824999745,0.6823,4342.5,4339.6,12.44246]
[1756824999746,0.2045,4342.0,4341.9,0.245]
[1756824999944,0.2045,4342.0,4341.9,0.246]
[1756825000136,0.2045,4342.0,4341.9,41.046]
[1756825000333,0.2045,4342.0,4341.9,0.246]
[1756825000535,0.2045,4342.5,4341.9,0.246]
[1756825000738,0.4778,4342.7,4342.3,3.2078]
[1756825000936,0.2045,4343.0,4342.4,0.246]
[1756825001139,0.4778,4342.8,4342.4,0.246]
[1756825001335,0.4778,4342.4,4342.0,40.8]
[1756825001533,0.4778,4342.4,4342.2,3.2078]
[1756825001738,0.4778,4342.9,4342.3,0.246]
[1756825002146,3.6856,4343.4,4342.7,3.2078]
[1756825002339,0.4778,4343.1,4342.2,3.2078]
[1756825002540,0.2045,4342.5,4342.2,3.2078]
[1756825002843,0.2045,4342.5,4341.2,3.2078]
[1756825002844,0.4778,4342.3,4341.2,3.2078]
[1756825003146,0.61973386,4342.2,4341.3,0.246]
[1756825003338,0.4778,4341.9,4341.4,40.8]
[1756825003539,0.6823,4342.0,4341.6,0.41456]
[1756825003734,0.6823,4342.0,4341.7,0.246]
[1756825003939,0.4778,4341.9,4341.7,0.246]
[1756825004342,0.2045,4342.0,4341.4,40.8]
[1756825004543,0.2045,4342.0,4341.5,0.246]
[1756825004943,0.2045,4342.0,4341.6,0.246]
[1756825005139,0.2045,4342.0,4341.7,0.246]
[1756825005342,0.4778,4341.9,4341.7,0.246]
[1756825005542,0.2045,4342.0,4341.7,3.2078]
[1756825005743,3.2078,4342.4,4341.9,0.41453]
[1756825005744,0.4778,4342.3,4341.9,0.41453]